fUST/lending_fUST_20251231
["ID","MTS","AMOUNT","RATE_DAILY","PERIOD"]
[400103634,1767117032636,-518.66962579,0.00023511,2]
[400103635,1767117032645,-518.66962579,0.00023511,2]
[400103636,1767117032655,-518.66962579,0.00023511,2]
[400103637,1767117032664,-518.66962579,0.00023511,2]
[400103638,1767117032673,-518.66962579,0.00023511,2]
[400103639,1767117032682,-518.66962579,0.00023511,2]
[400103640,1767117032691,-518.66962579,0.00023511,2]
[400103641,1767117032701,-518.66962579,0.00023511,2]
[400103642,1767117032711,-518.66962579,0.00023511,2]
[400103643,1767117032720,-518.66962579,0.00023511,2]
[400103644,1767117032729,-518.66962579,0.00023511,2]
[400103645,1767117032738,-518.66962579,0.00023511,2]
[400103646,1767117032747,-518.66962579,0.00023511,2]
[400103647,1767117032756,-518.66962579,0.00023511,2]
[400103648,1767117032766,-518.66962579,0.00023511,2]
[400103649,1767117032775,-518.66962579,0.00023511,2]
[400103650,1767117032785,-518.66962579,0.00023511,2]
[400103651,1767117032795,-518.66962579,0.00023511,2]
[400103652,1767117032804,-518.66962579,0.00023511,2]
[400103653,1767117032814,-518.66962579,0.00023511,2]
[400103654,1767117032823,-518.66962579,0.00023511,2]
[400103655,1767117032832,-518.66962579,0.00023511,2]
[400103656,1767117032842,-518.66962579,0.00023511,2]
[400103657,1767117032851,-518.66962579,0.00023511,2]
[400103658,1767117032860,-518.66962579,0.00023511,2]
[400103659,1767117032870,-518.66962579,0.00023511,2]
[400103660,1767117032879,-518.66962579,0.00023511,2]
[400103661,1767117032888,-518.66962579,0.00023511,2]
[400103662,1767117032898,-518.66962579,0.00023511,2]
[400103663,1767117032907,-518.66962579,0.00023511,2]
[400103664,1767117032916,-518.66962579,0.00023511,2]
[400103665,1767117032925,-518.66962579,0.00023511,2]
[400103666,1767117032935,-518.66962579,0.00023511,2]
[400103667,1767117032944,-518.66962579,0.00023511,2]
[400103668,1767117032954,-518.66962579,0.00023511,2]
[400103669,1767117032963,-518.66962579,0.00023511,2]
[400103670,1767117032973,-518.66962579,0.00023511,2]
[400103671,1767117032982,-518.66962585,0.00023511,2]
[400103672,1767117032991,-518.66962585,0.00023511,2]
[400103673,1767117033001,-9035.0,0.00023511,2]
[400103674,1767117033010,-500.0,0.00023512,2]
[400103675,1767117033020,-5000.0,0.00023513,2]
[400103676,1767117033029,-500.0,0.00023561,2]
[400103677,1767117033040,-387.71,0.000236,7]
[400103678,1767117033049,-478.96,0.00023755,10]
[400103679,1767117033059,-150.0,0.00023764,2]
[400103680,1767117033070,-500.0,0.00023765,2]
[400103681,1767117033079,-500.0,0.00023765,2]
[400103682,1767117033089,-500.0,0.00023765,2]
[400103683,1767117033099,-500.0,0.00023765,2]
[400103684,1767117033109,-150.0,0.00023765,2]
[400103685,1767117033119,-500.0,0.00023765,2]
[400103686,1767117033128,-150.0,0.00023765,2]
[400103687,1767117033137,-150.0,0.00023765,2]
[400103688,1767117033147,-399.13,0.00023814,10]
[400103689,1767117033161,-332.61,0.00023814,10]
[400103690,1767117033171,-1762.4652,0.00023824,2]
[400103691,1767117033180,-1762.4652,0.00023824,2]
[400103692,1767117033191,-1762.4652,0.00023824,2]
[400103693,1767117033201,-1762.4652,0.00023824,2]
[400103694,1767117033211,-1762.4652,0.00023824,2]
[400103695,1767117033220,-500.0,0.00023825,2]
[400103696,1767117033231,-500.0,0.00023835,2]
[400103697,1767117033240,-183.08,0.00023892,2]
[400103698,1767117033251,-500.0,0.00023902,2]
[400103699,1767117033260,-500.0,0.00023902,2]
[400103700,1767117033269,-500.0,0.00023902,2]
[400103701,1767117033279,-600.0,0.00023902,2]
[400103702,1767117033288,-150.0,0.00023902,2]
[400103703,1767117033298,-500.0,0.00023902,2]
[400103704,1767117033307,-193.31,0.00023921,3]
[400103705,1767117033317,-172.95823622,0.00024,2]
[400103706,1767117033326,-151.0,0.00024,10]
[400103707,1767117033336,-558.7763649,0.00024,2]
[400103708,1767117033345,-183.08,0.00024032,2]
[400103709,1767117033355,-188.48969309,0.00024036,2]
[400103710,1767117033365,-500.0,0.00024036,2]
[400103711,1767117033374,-1678.82,0.00024036,2]
[400103712,1767117033384,-1678.82,0.00024036,2]
[400103713,1767117033393,-1678.82,0.00024036,2]
[400103714,1767117033403,-500.0,0.00024036,2]
[400103715,1767117033413,-500.0,0.00024038,2]
[400103716,1767117033423,-500.0,0.00024038,2]
[400103717,1767117033433,-500.0,0.00024038,2]
[400103718,1767117033443,-601.66,0.00024038,2]
[400103719,1767117033453,-601.66,0.00024038,2]
[400103720,1767117033462,-500.0,0.00024039,2]
[400103721,1767117033472,-300.0,0.00024039,2]
[400103722,1767117033481,-450.0,0.00024039,2]
[400103723,1767117033491,-213.45377873,0.00024039,2]
[400103724,1767117033501,-600.0,0.00024039,2]
[400103725,1767117033511,-1678.82,0.00024039,2]
[400103726,1767117033521,-1678.82,0.0002404,2]
[400103727,1767117033530,-601.66,0.0002404,2]
[400103728,1767117033540,-601.66,0.0002404,2]
[400103729,1767117033550,-201.08119693,0.00024041,2]
[400103730,1767117033560,-1678.82,0.00024041,2]
[400103731,1767117033570,-1678.82,0.00024041,2]
[400103732,1767117033580,-1678.82,0.00024041,2]
[400103733,1767117033590,-1678.82,0.00024041,2]
[400103734,1767117033600,-1678.82,0.00024041,2]
[400103735,1767117033611,-1678.82,0.00024041,2]
[400103736,1767117033621,-1678.82,0.00024041,2]
[400103737,1767117033630,-1678.82,0.00024041,2]
[400103738,1767117033640,-1678.82,0.00024041,2]
[400103739,1767117033650,-1678.82,0.00024041,2]
[400103740,1767117033659,-1678.82,0.00024041,2]
[400103741,1767117033669,-1678.82,0.00024041,2]
[400103742,1767117033679,-1678.82,0.00024041,2]
[400103743,1767117033689,-1678.82,0.00024041,2]
[400103744,1767117033698,-1678.82,0.00024041,2]
[400103745,1767117033708,-1678.82,0.00024041,2]
[400103746,1767117033718,-1678.82,0.00024041,2]
[400103747,1767117033727,-1678.82,0.00024041,2]
[400103748,1767117033737,-1678.85457513,0.00024041,2]
[400103749,1767117033747,-601.66,0.00024041,2]
[400103750,1767117033756,-601.66,0.00024041,2]
[400103751,1767117033766,-601.66,0.00024041,2]
[400103752,1767117033775,-601.66,0.00024041,2]
[400103753,1767117033785,-601.66,0.00024041,2]
[400103754,1767117033794,-601.66,0.00024041,2]
[400103755,1767117033804,-601.66,0.00024041,2]
[400103756,1767117033813,-601.66,0.00024041,2]
[400103757,1767117033823,-601.66,0.00024041,2]
[400103758,1767117033832,-601.66,0.00024041,2]
[400103759,1767117033842,-601.66,0.00024041,2]
[400103760,1767117033852,-601.66,0.00024041,2]
[400103761,1767117033862,-601.66,0.00024041,2]
[400103762,1767117033871,-601.66,0.00024041,2]
[400103763,1767117033880,-601.66,0.00024041,2]
[400103764,1767117033890,-601.66,0.00024041,2]
[400103765,1767117033899,-601.66,0.00024041,2]
[400103766,1767117033908,-601.66,0.00024041,2]
[400103767,1767117033918,-601.66,0.00024041,2]
[400103768,1767117033928,-601.78471113,0.00024041,2]
[400103769,1767117033938,-165686.92221439,0.00024042,2]
[400103770,1767117034052,-973.0,0.00023824,2]
[400103801,1767117037839,-150.0,0.00013272,2]
[400103803,1767117037849,-300.0,0.00013537,2]
[400103805,1767117037860,-300.0,0.00013537,2]
[400103807,1767117037870,-300.0,0.00013537,2]
[400103809,1767117037879,-300.0,0.00013537,2]
[400103811,1767117037888,-300.0,0.00013537,2]
[400103813,1767117037899,-300.0,0.00013537,2]
[400103815,1767117037909,-300.0,0.00013537,2]
[400103817,1767117037918,-300.0,0.00013537,2]
[400103819,1767117037929,-300.0,0.00013537,2]
[400103821,1767117037939,-300.0,0.00013537,2]
[400103823,1767117037948,-300.0,0.00013537,2]
[400103825,1767117037957,-300.0,0.00013537,2]
[400103827,1767117037967,-300.0,0.00013537,2]
[400103829,1767117037977,-300.0,0.00013537,2]
[400103831,1767117037986,-579.0751861,0.00023823,2]
[400103833,1767117037996,-252.60301599,0.00023823,2]
[400103835,1767117038005,-1390.43935627,0.00023823,2]
[400103837,1767117038015,-1390.43935627,0.00023823,2]
[400103839,1767117038025,-1390.43935627,0.00023823,2]
[400103841,1767117038034,-1390.43935627,0.00023823,2]
[400103842,1767117038045,-1390.43935627,0.00023823,2]
[400103845,1767117038055,-1390.43935627,0.00023823,2]
[400103846,1767117038067,-1390.43935627,0.00023823,2]
[400103848,1767117038078,-1390.43935627,0.00023823,2]
[400103850,1767117038088,-1390.43935627,0.00023823,2]
[400103852,1767117038098,-1390.43935627,0.00023823,2]
[400103854,1767117038110,-1390.43935627,0.00023823,2]
[400103856,1767117038121,-1390.43935627,0.00023823,2]
[400103858,1767117038131,-1390.43935627,0.00023823,2]
[400103860,1767117038141,-1390.43935627,0.00023823,2]
[400103862,1767117038154,-1390.43935627,0.00023823,2]
[400103864,1767117038164,-1390.43935627,0.00023823,2]
[400103866,1767117038174,-1390.43935627,0.00023823,2]
[400103867,1767117038186,-1390.43935627,0.00023823,2]
[400103868,1767117038196,-789.4652,0.00023824,2]
[400103869,1767117038206,-277.17,0.00024032,10]
[400103870,1767117038217,-834313.07778561,0.00024042,2]
[400103871,1767117038227,-928.53,0.000241,14]
[400103872,1767117038332,-7527.52,0.000241,2]
[400103873,1767117038363,-500.0,0.00024109,2]
[400103874,1767117038373,-500.0,0.0002431,2]
[400103875,1767117038382,-500.0,0.0002431,2]
[400103876,1767117038392,-500.0,0.00024383,2]
[400103877,1767117038401,-1041.66666667,0.00024462,2]
[400103878,1767117038411,-500.0,0.00024584,2]
[400103879,1767117038420,-500.0,0.00024584,2]
[400103880,1767117038430,-500.0,0.00024657,2]
[400103881,1767117038441,-29099.9591334,0.000248,2]
[400103882,1767117038450,-387.34142807,0.00024858,2]
[400103883,1767117038460,-500.0,0.00024858,2]
[400103884,1767117038471,-500.0,0.00024931,2]
[400103885,1767117038481,-500.0,0.00025082,2]
[400103886,1767117038490,-250.0,0.00025082,2]
[400103887,1767117038499,-151.0,0.00025082,2]
[400103888,1767117038508,-250.0,0.00025082,2]
[400103889,1767117038518,-500.0,0.00025082,2]
[400103890,1767117038527,-151.0,0.00025082,2]
[400103891,1767117038537,-250.0,0.00025082,2]
[400103892,1767117038547,-500.0,0.00025082,2]
[400103893,1767117038557,-496.47127164,0.00025082,2]
[400103894,1767117038567,-257.40548047,0.00025082,2]
[400103895,1767117038576,-500.0,0.00025082,2]
[400103896,1767117038586,-151.0,0.00025082,2]
[400103897,1767117038595,-151.0,0.00025082,2]
[400103898,1767117038604,-151.0,0.00025082,2]
[400103899,1767117038614,-151.0,0.00025082,2]
[400103900,1767117038623,-151.0,0.00025082,2]
[400103901,1767117038634,-151.0,0.00025082,2]
[400103902,1767117038643,-151.0,0.00025082,2]
[400103903,1767117038653,-151.0,0.00025082,2]
[400103904,1767117038663,-151.0,0.00025082,2]
[400103905,1767117038673,-151.0,0.00025082,2]
[400103906,1767117038684,-2398.4119403,0.00025082,2]
[400103907,1767117038693,-151.0,0.00025082,2]
[400103908,1767117038703,-151.0,0.00025082,2]
[400103909,1767117038712,-152.94870132,0.00025082,2]
[400103910,1767117038722,-151.0,0.00025082,2]
[400103911,1767117038732,-387.71,0.000251,7]
[400103912,1767117038741,-221.05802171,0.00025104,2]
[400103913,1767117038751,-500.0,0.00025205,2]
[400103914,1767117038760,-599.6069297,0.00025293,2]
[400103915,1767117038770,-500.0,0.00025479,2]
[400103916,1767117038779,-7527.52,0.000255,2]
[400103917,1767117038790,-500.0,0.00025509,7]
[400103918,1767117038800,-160.0,0.00025611,2]
[400103919,1767117038809,-514.84070869,0.0002563,2]
[400103920,1767117038819,-2487.15318209,0.0002563,2]
[400103921,1767117038829,-5000.0,0.0002568,2]
[400103922,1767117038838,-500.0,0.00025753,2]
[400103923,1767117038848,-12649.0,0.00025863,2]
[400103924,1767117038858,-500.0,0.00026017,7]
[400103925,1767117038867,-500.0,0.00026027,2]
[400103926,1767117038877,-376.3220282,0.00026082,2]
[400103927,1767117038887,-376.3220282,0.00026082,2]
[400103928,1767117038897,-376.3220282,0.00026082,2]
[400103929,1767117038908,-375.4757372,0.00026082,2]
[400103930,1767117038917,-151.0,0.00026113,7]
[400103931,1767117038927,-191.682356,0.00026113,7]
[400103932,1767117038937,-533.88981491,0.00026178,2]
[400103933,1767117038950,-562.61021307,0.00026178,2]
[400103934,1767117038961,-558.77636487,0.000262,2]
[400103935,1767117038972,-376.3220282,0.00026219,2]
[400103936,1767117038982,-4586.75879705,0.00026287,2]
[400103937,1767117038994,-500.0,0.00026301,2]
[400103938,1767117039004,-168.0,0.00026567,2]
[400103939,1767117039014,-173.633,0.00026574,13]
[400103940,1767117039024,-269.89766043,0.00026575,2]
[400103941,1767117039035,-168.0,0.00026597,2]
[400103942,1767117039045,-928.53,0.000266,14]
[400103943,1767117039055,-151.0,0.000266,7]
[400103944,1767117039066,-244.49505903,0.00026608,2]
[400103945,1767117039078,-500.0,0.00026617,7]
[400103946,1767117039090,-168.0,0.0002666,2]
[400103947,1767117039100,-553.64373807,0.00026726,2]
[400103948,1767117039110,-12430.24642869,0.0002683,2]
[400103949,1767117039120,-172.95823622,0.0002685,2]
[400103950,1767117039132,-600.0,0.00026879,2]
[400103951,1767117039142,-2769.70299228,0.00026888,2]
[400103952,1767117039153,-1198.7179642,0.0002693,2]
[400103953,1767117039167,-303.3898112,0.0002693,2]
[400103954,1767117039176,-303.3898112,0.0002693,2]
[400103955,1767117039186,-758.7162597,0.0002693,2]
[400103956,1767117039196,-186.19554048,0.00027,2]
[400103957,1767117039206,-387.71,0.00027,7]
[400103958,1767117039215,-7527.52,0.00027,2]
[400103959,1767117039225,-165.0,0.00027,7]
[400103960,1767117039236,-376.1809797,0.00027014,2]
[400103961,1767117039245,-1033.14961331,0.00027014,2]
[400103962,1767117039255,-168.0,0.00027024,2]
[400103963,1767117039264,-5000.0,0.00027059,9]
[400103964,1767117039273,-2156.0,0.00027141,2]
[400103965,1767117039283,-627.0,0.00027141,2]
[400103966,1767117039292,-1364.0,0.00027141,2]
[400103967,1767117039302,-251.305,0.00027141,2]
[400103968,1767117039312,-5000.0,0.00027142,15]
[400103969,1767117039321,-294.22091321,0.00027143,2]
[400103970,1767117039331,-600.0,0.00027159,2]
[400103971,1767117039340,-1933.0,0.00027199,7]
[400103972,1767117039350,-1978.218114,0.000272,2]
[400103973,1767117039359,-800.0,0.00027242,2]
[400103974,1767117039369,-800.0,0.00027266,2]
[400103975,1767117039378,-574.12855637,0.00027274,2]
[400103976,1767117039388,-558.77636487,0.000273,2]
[400103977,1767117039398,-800.0,0.00027306,2]
[400103978,1767117039408,-800.0,0.0002731,2]
[400103979,1767117039418,-538.16108523,0.00027397,2]
[400103980,1767117039427,-210.0,0.00027397,2]
[400103981,1767117039436,-151.0,0.00027397,7]
[400103982,1767117039445,-151.0,0.00027397,7]
[400103983,1767117039455,-151.0,0.00027397,7]
[400103984,1767117039464,-151.0,0.00027397,7]
[400103986,1767117039473,-151.0,0.00027397,7]
[400103987,1767117039482,-151.0,0.00027397,7]
[400103988,1767117039492,-184.789263,0.00027397,7]
[400103989,1767117039502,-150.0,0.00027397,5]
[400103990,1767117039511,-256.2027228,0.00027409,2]
[400103991,1767117039520,-292.80311177,0.00027409,2]
[400103993,1767117039530,-583.0525412,0.00027409,2]
[400103995,1767117039539,-1049.49457416,0.00027409,2]
[400103997,1767117039548,-600.0,0.00027439,2]
[400103998,1767117039557,-5888.0,0.00027448,2]
[400104000,1767117039566,-2189.40471353,0.00027473,2]
[400104001,1767117039576,-474.5,0.00027592,10]
[400104003,1767117039585,-1933.0,0.00027599,2]
[400104005,1767117039595,-408.0,0.000276,2]
[400104007,1767117039604,-5000.0,0.00027611,7]
[400104008,1767117039613,-5000.0,0.00027616,4]
[400104009,1767117039623,-4473.0,0.00027648,2]
[400104010,1767117039632,-168.0,0.00027667,2]
[400104012,1767117039641,-1000.0,0.0002768,5]
[400104014,1767117039650,-12818.1231319,0.00027692,2]
[400104016,1767117039659,-3339.7295946,0.00027692,2]
[400104018,1767117039668,-5000.0,0.00027699,10]
[400104020,1767117039677,-5000.0,0.00027699,5]
[400104021,1767117039687,-5000.0,0.00027699,14]
[400104023,1767117039696,-1000.0,0.000277,5]
[400104024,1767117039705,-1000.0,0.000277,2]
[400104025,1767117039714,-250.0,0.000277,10]
[400104026,1767117039723,-198.417892,0.000277,2]
[400104027,1767117039733,-5000.0,0.00027719,2]
[400104028,1767117039742,-600.0,0.00027719,2]
[400104029,1767117039751,-469.44015882,0.0002772,2]
[400104030,1767117039760,-334394.61433979,0.0002772,2]
[400104031,1767117039773,-5981.15511789,0.0002772,2]
[400104032,1767117039785,-24671.83622394,0.0002772,2]
[400104034,1767117039803,-1792.72551052,0.0002772,2]
[400104035,1767117039814,-3087.21434208,0.0002772,2]
[400104040,1767117039954,-600.0,0.00024298,10]
[400104041,1767117039964,-720.0,0.00026728,30]
[400104042,1767117039974,-4239.2082509,0.0002772,2]
[400104061,1767117043939,-201.993,0.00027141,2]
[400104062,1767117043950,-141.56976208,0.0002772,2]
[400104070,1767117046910,-196.04626885,0.0002772,2]
[400104071,1767117046926,-10248.59112652,0.0002772,2]
[400104072,1767117046938,-1607.03640909,0.0002772,2]
[400104073,1767117046949,-2893.701801,0.0002772,2]
[400104077,1767118146128,-500.0,0.00013273,2]
[400104078,1767118146150,-406.40221121,0.00013273,2]
[400104079,1767118146171,-500.0,0.00013273,2]
[400104080,1767118146194,-180.22718291,0.00013273,2]
[400104081,1767118146220,-150.0,0.00013273,2]
[400104082,1767118146245,-608.0,0.00013273,2]
[400104083,1767118146268,-1000.0,0.00013821,2]
[400104084,1767118146293,-1500.0,0.00014368,2]
[400104085,1767118146318,-300.0,0.00014913,2]
[400104086,1767118146340,-359.0,0.00014914,2]
[400104087,1767118146367,-1200.0,0.00014915,2]
[400104088,1767118146391,-769.30127598,0.00014916,2]
[400104089,1767118150192,-415.6303733,0.00014916,2]
[400104090,1767118150216,-630.34987816,0.0001527,2]
[400104091,1767118150237,-184.47331872,0.0001527,2]
[400104092,1767118150413,-500.0,0.0001527,2]
[400104093,1767118150434,-500.0,0.0001527,2]
[400104094,1767118150457,-500.0,0.0001527,2]
[400104095,1767118150479,-596.60610422,0.0001527,2]
[400104096,1767118150500,-574.71774709,0.0001527,2]
[400104097,1767118150520,-500.0,0.0001527,2]
[400104098,1767118150540,-500.0,0.0001527,2]
[400104099,1767118150560,-500.0,0.0001527,2]
[400104100,1767118150579,-172.21416384,0.0001527,2]
[400104101,1767118150600,-500.0,0.0001527,2]
[400104102,1767118150620,-500.0,0.0001527,2]
[400104103,1767118150639,-500.0,0.0001527,2]
[400104104,1767118150662,-500.0,0.0001527,2]
[400104105,1767118150682,-421.74497478,0.0001527,2]
[400104106,1767118150702,-500.0,0.0001527,2]
[400104107,1767118150722,-500.0,0.0001527,2]
[400104108,1767118150743,-500.0,0.0001527,2]
[400104109,1767118150762,-500.0,0.0001527,2]
[400104110,1767118150782,-500.0,0.0001527,2]
[400104111,1767118150802,-500.0,0.0001527,2]
[400104112,1767118150821,-500.0,0.0001527,2]
[400104113,1767118150841,-551.5,0.0001527,2]
[400104114,1767118150863,-500.0,0.0001527,2]
[400104115,1767118150883,-500.0,0.0001527,2]
[400104116,1767118150904,-500.0,0.0001527,2]
[400104117,1767118150924,-500.0,0.0001527,2]
[400104118,1767118150944,-500.0,0.0001527,2]
[400104119,1767118150963,-500.0,0.0001527,2]
[400104120,1767118150982,-296.59770738,0.0001527,2]
[400104121,1767118151002,-48548.49745481,0.00015271,2]
[400104122,1767118151023,-177.0,0.00015273,2]
[400104123,1767118151042,-420.0,0.00016323,2]
[400104124,1767118151061,-1680.0,0.00016407,2]
[400104125,1767118151081,-277.51580534,0.00017154,2]
[400104126,1767118151103,-300.0,0.00017271,2]
[400104127,1767118151124,-204.0,0.00017273,2]
[400104128,1767118151143,-5143.7450989,0.00017562,2]
[400104129,1767118228577,227.8674362,0.00015384,2]
[400104151,1767118231829,-227.8674362,0.00017447,2]
[400104153,1767118231839,-350.36,0.00019,2]
[400104155,1767118231848,-1200.0,0.00019177,2]
[400104157,1767118231858,-500.0,0.00019178,2]
[400104159,1767118231867,-500.0,0.00019178,2]
[400104161,1767118231876,-500.0,0.00019178,2]
[400104163,1767118231886,-500.0,0.00019178,2]
[400104165,1767118231895,-500.0,0.00019178,2]
[400104167,1767118231904,-500.0,0.00019178,2]
[400104169,1767118231913,-500.0,0.00019178,2]
[400104171,1767118231924,-500.0,0.00019178,2]
[400104173,1767118231933,-500.0,0.00019178,2]
[400104175,1767118231942,-500.0,0.00019178,2]
[400104177,1767118231950,-500.0,0.00019178,2]
[400104179,1767118231960,-367.65336923,0.00019178,2]
[400104180,1767118231969,-500.0,0.00019178,2]
[400104182,1767118231978,-500.0,0.00019178,2]
[400104184,1767118231987,-500.0,0.00019178,2]
[400104187,1767118231996,-500.0,0.00019178,2]
[400104189,1767118232006,-231.0,0.00019273,2]
[400104192,1767118232015,-227.8674362,0.0001951,2]
[400104195,1767118232024,-1680.0,0.00021,2]
[400104198,1767118232033,-277.51580534,0.0002122,2]
[400104199,1767118232042,-258.0,0.00021273,2]
[400104201,1767118232051,-227.8674362,0.00021573,2]
[400104203,1767118232061,-500.0,0.00021787,2]
[400104205,1767118232069,-500.0,0.00021837,2]
[400104207,1767118232078,-500.0,0.00021915,2]
[400104209,1767118232088,-500.0,0.00021916,2]
[400104211,1767118232097,-500.0,0.00021916,2]
[400104213,1767118232106,-500.0,0.00021917,2]
[400104215,1767118232115,-2772.55126028,0.00021917,2]
[400104217,1767118232124,-500.0,0.00021917,2]
[400104219,1767118232133,-258.92,0.00021917,2]
[400104221,1767118232142,-171.49,0.00021917,2]
[400104223,1767118232152,-500.0,0.00021917,2]
[400104225,1767118232161,-500.0,0.00021917,2]
[400104227,1767118232172,-500.0,0.00021917,2]
[400104229,1767118232182,-150.0,0.00021918,2]
[400104230,1767118232191,-300.0,0.00022119,2]
[400104232,1767118232200,-288.89,0.00022191,2]
[400104234,1767118232209,-500.0,0.00022191,2]
[400104236,1767118232218,-500.0,0.00022191,2]
[400104238,1767118232227,-218.1,0.00022191,2]
[400104240,1767118232238,-500.0,0.00022191,2]
[400104242,1767118232247,-500.0,0.00022263,2]
[400104244,1767118232256,-500.0,0.00022276,2]
[400104246,1767118232266,-500.0,0.00022465,2]
[400104248,1767118232276,-500.0,0.00022465,2]
[400104250,1767118232286,-500.0,0.00022465,2]
[400104252,1767118232296,-152.70127807,0.00022466,2]
[400104254,1767118232306,-500.0,0.00022531,2]
[400104256,1767118232316,-500.0,0.00022739,2]
[400104258,1767118232325,-500.0,0.00022739,2]
[400104260,1767118232335,-500.0,0.00022739,2]
[400104261,1767118232345,-160.0,0.00022819,2]
[400104263,1767118232354,-1041.66666667,0.00022824,2]
[400104265,1767118232364,-2351.0,0.00022997,2]
[400104267,1767118232374,-500.0,0.00023013,2]
[400104269,1767118232383,-500.0,0.00023013,2]
[400104271,1767118232393,-285.0,0.00023273,2]
[400104273,1767118232402,-500.0,0.00023287,2]
[400104275,1767118232411,-500.0,0.00023287,2]
[400104277,1767118232422,-500.0,0.00023512,2]
[400104279,1767118232432,-5000.0,0.00023513,2]
[400104281,1767118232442,-500.0,0.00023561,2]
[400104283,1767118232451,-500.0,0.00023561,2]
[400104285,1767118232460,-500.0,0.00023669,2]
[400104287,1767118232470,-150.0,0.00023765,2]
[400104289,1767118232479,-275.24518356,0.00023765,2]
[400104291,1767118232492,-500.0,0.00023765,2]
[400104293,1767118232501,-500.0,0.00023786,2]
[400104295,1767118232511,-461.28,0.00023829,2]
[400104297,1767118232521,-1762.4652,0.0002383,2]
[400104298,1767118232530,-1762.4652,0.00023832,2]
[400104300,1767118232539,-500.0,0.00023835,2]
[400104302,1767118232548,-200.0,0.00023835,2]
[400104304,1767118232558,-200.0,0.00023835,2]
[400104306,1767118232567,-200.0,0.00023835,2]
[400104308,1767118232576,-200.0,0.00023835,2]
[400104310,1767118232585,-200.0,0.00023835,2]
[400104312,1767118232594,-200.0,0.00023835,2]
[400104314,1767118232603,-200.0,0.00023835,2]
[400104316,1767118232612,-200.0,0.00023835,2]
[400104318,1767118232622,-500.0,0.00023835,2]
[400104320,1767118232632,-348.94,0.000239,7]
[400104322,1767118232642,-150.0,0.00023902,2]
[400104324,1767118232651,-500.0,0.00023902,2]
[400104326,1767118232660,-600.0,0.00023979,10]
[400104327,1767118232669,-498.79889081,0.00024039,2]
[400104329,1767118232679,-500.0,0.00024109,2]
[400104331,1767118232688,-500.0,0.00024109,2]
[400104333,1767118232697,-500.0,0.00024383,2]
[400104335,1767118232706,-500.0,0.00024383,2]
[400104337,1767118232716,-500.0,0.00024657,2]
[400104339,1767118232725,-500.0,0.00024657,2]
[400104341,1767118232735,-300.0,0.00024658,2]
[400104343,1767118232744,-500.0,0.00024658,2]
[400104345,1767118232753,-500.0,0.0002474,2]
[400104347,1767118232762,-500.0,0.00024795,2]
[400104349,1767118232771,-6344.18898282,0.000248,2]
[400104351,1767118232780,-4229.45932188,0.0002489,2]
[400104352,1767118232789,-13757.26154213,0.000249,2]
[400104357,1767118232825,-508.75859215,0.00024799,2]
[400104359,1767118232836,-142.7627353,0.00024799,2]
[400104361,1767118232845,-262.85688913,0.00024799,2]
[400104363,1767118232855,-1407.14344565,0.00024799,2]
[400104365,1767118232864,-787.23692992,0.000249,2]
[400104366,1767118232875,-2750.0,0.000249,2]
[400104367,1767118232886,-476.52,0.000249,2]
[400104378,1767118237943,-1407.14344565,0.00024799,2]
[400104379,1767118237953,-1086.79883283,0.00024799,2]
[400104380,1767118237965,-320.34461282,0.00024799,2]